{"text_format":"1","workbook":"xlsx","n_sheets":2,"sheets":["Part 2","Report"],"not_rendered":{"charts":0,"images":124,"macros":1,"external_links":0,"defined_names":2,"comments":0,"pivot_tables":0},"unopened":[],"bounds":{"document_bytes":16777216,"sheet_cells":100000,"rows_first":2000,"rows_last":500,"rows_between":2000,"halvings":0,"cell_chars":16384,"cell_head_chars":4096},"cells_cut":0,"cells_raw":0,"read":"whole","date_system":"1900"}

{"sheet":"Part 2","index":0,"n_rows":46,"n_cols":27,"rows_kept":46,"cut":false,"hidden":false,"merged":[[14,5,15,5],[14,6,15,6],[5,1,5,4]]}
["Species:",null,null,null,"Progress/results:",null,null,null,null,null,null,null,null,null,null,null,null,null,null,null,null,null,null,null,null,null,"50=Green, 45=Orange, 44=Yellow, 3=Red, -4142 (or 2)=None"]
["Common name:",null,null,null,"lllllllllllllllllllllllllllllllllllllll"]
["Institution:"]
[]
[null,"Question",null,null,"Response","Result","Recommendations","Comments"]
[null,"Once it has been determined though a Conservation Needs Assessment or another credible assessment process (e.g. state or national wildlife agency) that the species in question is a suitable, or least a potentially suitable candidate for a captive conservation program, answering these questions will allow individual institutions to determine their potential to host a program for that species. "]
[2.1,"Is your institution within or outside the geographic range of the target species?",null,"1.\n2.\n3.","Within range\nOutside range\n(clear)"]
["2.1.i","If out of range, could the program be established within range instead within an appropriate timeframe?",null,"1.\n2.\n3.","Yes\nNo\n(clear)"]
["2.1.ii.a","Has a disease risk assessment been conducted? ",null,"1.\n2.\n3.","Yes\nNo\n(clear)"]
["2.1.ii.b","Is your institution able to provide dedicated secure facilities (as in, no amphibian species from outside the species geographic range, or species that could be vectors of amphibian diseases will be housed in or have access to the facility)? ",null,"1.\n2.\n3.","Yes\nNo\n(clear)"]
["2.1.ii.c","Can your institution provide dedicated equipment for use only with the target species?",null,"1.\n2.\n3.","Yes\nNo\n(clear)"]
["2.1.ii.d","Can your institution provide dedicated staff (as in, they will not work with any other amphibian species, or species that could be vectors of amphibian diseases, in your collection or on your site)?",null,"1.\n2.\n3.","Yes\nNo\n(clear)"]
["2.1.ii.e","Are there native amphibian species present at or near your institution?",null,"1.\n2.\n3.","Yes\nNo\n(clear)"]
["2.1.ii.e.1","If Yes, can your institution provide appropriate water treatment and solid waste disposal for the target species to minimise the risk of novel disease transmission from the target species to local species?",null,"1.\n2.\n3.","Yes\nNo\n(clear)"]
["2.1.ii.f","Can your institution maintain the target species in a permanent state of high-level quarantine to minimise the risk of transferring novel diseases from local amphibians (native or feral) that are found on or near your grounds to the target species and vice versa? See Health, Biosecurity and quarantine.",null,"1.\n2.\n3.","Yes\nNo\n(clear)"]
[null,"http://www.amphibianark.org/husbandry-documents/ "]
["2.1.iii","If out of range, are there appropriate threatened native species local to your institution that you could be focussing on instead?",null,"1.\n2.\n3.","Yes\nNo\n(clear)"]
["2.1.iii.a","If there are, is there a clear justification as to why your institution should focus on an exotic species instead of a local species (e.g. the exotic species is a higher conservation priority or the native species has a lower EDGE score or other recognised ‘value’ assessment score; there is another institution within the native species range that is better suited to work with the native species; existing facilities or staff skill set are better suited to work with the exotic species; etc)? ",null,"1.\n2.\n3.","Yes\nNo\n(clear)"]
["2.1.iv","If out of range and there are either other amphibians in your collection and/or free-ranging amphibians on site, is the target species from a simple or complex system? ",null,"1.\n2.\n3.","Simple system\nComplex system\n(clear)"]
["2.1.iv.a","If the target species is from a simple system are any of the other amphibian species that co-occur with the target species either threatened or restricted to a narrow geographic range?",null,"1.\n2.\n3.","Yes\nNo\n(clear)"]
["2.1.iv.b","If the only other amphibian species that co-occur with the target species are either exotic or widespread, how likely is it that amphibians of any species could disperse into or out of the target area (i.e. how close and easily accessible to an amphibian is the mainland or closest island with suitable habitat or closest patch of suitable habitat)? ",null,"1.\n2.\n3.\n4.","Highly unlikely\nModerately likely\nNot well isolated or unknown\n(clear)"]
[2.2000000000000002,"Does your institution hold other amphibian species (irrespective of whether it is inside or outside of the geographic range of the species)? ",null,"1.\n2.\n3.","Yes\nNo\n(clear)"]
["2.2.i","If Yes, were any amphibians in your collection collected outside the geographic range of the target species for the captive breeding program, and/or have any of them ever been housed at an institution that also held amphibians from outside the geographic range of the target species? ",null,"1.\n2.\n3.","Yes\nNo\n(clear)"]
["2.2.ii.a","If your institution holds any amphibians that were collected outside the geographic range of the target species and/or that were previously held by institutions that also housed amphibians from outside the geographic range of the target species, has a disease risk assessment been conducted?",null,"1.\n2.\n3.","Yes\nNo\n(clear)"]
["2.2.ii.b","If your institution holds any amphibians that were collected outside the geographic range of the target species and/or that were previously held by institutions that also housed amphibians from outside the geographic range of the target species, is your institution able to provide dedicated facilities, equipment and staff for the target species and maintain it in a permanent state of high level quarantine? ",null,"1.\n2.\n3.","Yes\nNo\n(clear)"]
[2.2999999999999998,"Has the proposed species or a suitable analog (congener with similar husbandry requirements and reproductive biology) previously been successfully maintained and bred to at least the F2 generation at your institution? ",null,"1.\n2.\n3.","Yes\nNo\n(clear)"]
["2.3.i","If the proposed species or a suitable analog has not previously been maintained or bred at your institution, is there any information available relevant to keeping and/or breeding this species? (Refer to the answers to questions 1.4 - 1.12 in Part I; if Part I has not been completed, questions 1.4 – 1.12 need to be addressed before progressing further, noting that any recommendations that a captive breeding program should not proceed should be applied.)",null,"1.\n2.\n3.","Yes\nLittle or no information\n(clear)"]
["2.3.ii","If there is relevant information available, can your institution cater to all of the requirements of the species, including any known ‘special requirements’ that could impact on husbandry needs, enclosure and/or facility design or program success (e.g. requirement for relatively large enclosures, specific dietary requirements, particular elements of the habitat or specific environmental conditions for any stage of the life history, triggers for breeding, etc)?",null,"1.\n2.\n3.","Yes\nNo\n(clear)"]
["2.4.i","Has a Taxon Management Group or similar (e.g. State or National Recovery Team) been established for the target species (this group should include representatives from the ex situ community, researchers and field staff, government agencies, the local community, etc)?",null,"1.\n2.\n3.\n","Yes\nNo\n(clear)"]
["2.4.ii","Has a comprehensive written plan detailing program partners, goals, anticipated lifespan and management strategy, how and when reviews will be undertaken and the exit strategy for the program been developed? This plan should be reviewed by the Taxon Management Group/Recovery Team, or in the absence of such a group, the AArk prior to establishing the captive program. The ASG, AArk and regional zoo and aquarium associations can provide assistance to develop an appropriate plan if needed (AArk has developed a management plan template).",null,"1.\n2.\n3.\n","Yes\nNo\n(clear)"]
[2.5,"If the species will need to be maintained in captivity indefinitely, will your institution be able to adhere to the recommended strategy to minimise genetic and phenotypic adaptation to captivity (e.g. destroying eggs and culling tadpoles/metamorphs)? This should be part of the management plan discussed at 2.4; if a strategy has not been developed for the species in question, this needs to occur before proceeding any further.",null,"1.\n2.\n3.\n","Yes\nNo\n(clear)"]
[2.6,"Do you currently have, or can you acquire prior to acquisition of founders, appropriately skilled and experienced staff to establish and run the proposed program?",null,"1.\n2.\n3.\n","Yes\nNo\n(clear)",null,null,{"$f":"LEN(\"A long-term plan for the routine health monitoring of the captive population been developed in conjunction with an experienced veterinarian and the Taxon Management Group, relevant Recovery Team and/or AArk.\")","v":207}]
[2.7,"Do you or your staff have access to appropriate record-keeping systems and small population management tools (e.g. ZIMS, SPARKS, PMx)? Small population management tools do not need to be available at your institution, but you need to either have access to them and the necessary skills to use them or partner with an organisation that can do the required analyses on your behalf.",null,"1.\n2.\n3.\n","Yes\nNo\n(clear)"]
[2.8,"Has a long-term plan for the routine health monitoring of the captive population been developed in conjunction with an experienced veterinarian and the Taxon Management Group, relevant Recovery Team and/or AArk?",null,"1.\n2.\n3.\n","Yes\nNo\n(clear)"]
[2.9,"Is there a veterinarian experienced in animal health and diseases available at your institution or to the captive conservation program?",null,"1.\n2.\n3.\n","Yes\nNo\n(clear)"]
[2.1,"Did question 1.14 (from the previous stage of the assessment process) indicate that conditions at the planned release site(s) are different to those at the source population site(s)?",null,"1.\n2.\n3.\n4.","Yes\nNo\nRelease sites not yet identified\n(clear)"]
["2.10.i","Has the recommended trial to determine whether animals can successfully be transitioned from source site conditions to release site conditions already been conducted?",null,"1.\n2.\n\n3.\n4.","Yes\nYes but animals did not successfully transition to conditions mimicking those at the release site\nNo\n(clear)"]
["2.10.ii","Is your institution able to run the trial or has another institution been identified to run the trial?",null,"1.\n2.\n\n3.","Yes\nNo, and the species faces imminent extinction without ex situ intervention  \n(clear)"]
[2.11,"If there any known learned behaviours that would necessitate pre-release training (refer to the answer to question 1.13 in Part I), is your institution able to carry out the necessary training?",null,"1.\n\n\n2.\n\n3.\n\n4.\n\n5.","Behavioural repertoire is well-known and there are no learned behviours that would necessitate pre-release training\nThere are known behaviours and the institution IS able to carry out the necessary pre-release training\nThere are known behaviours and the institution IS NOT able to carry out the necessary pre-release training\nThere are no known learned behaviours, but the behavioural repertoire is not well-known\n(clear)"]
[2.12,"Is there any potential for difficulties receiving necessary equipment or supplies (including food items), or inability of trained equipment repair/service staff to access your institution, that would jeopardise the captive breeding program?",null,"1.\n2.\n3.\n","Yes\nNo\n(clear)"]
[2.13,"Do you have back-up units for critical systems required to provide appropriate environmental conditions (e.g. water filtration, water chillers or heaters, air conditioners, heaters, pumps)?",null,"1.\n2.\n3.\n","Yes\nNo\n(clear)"]
[2.14,"Do you have a comprehensive emergency response plan and any necessary equipment to ensure an appropriate response to a disaster, including the ability to maintain critical systems during extended power outages? ",null,"1.\n2.\n3.\n","Yes\nNo\n(clear)"]
[2.15,"What are the ramifications of establishing and running a captive breeding program for the target species at your institution on the resources required (e.g. running air conditioning or heating units constantly in a developed country to provide appropriate environmental conditions will have a clear cost in terms of equipment and electricity required, staffing costs in a developed country will be higher, etc.)? ",null,null,"Minimal impact on the resources required\nConsiderably increase the financial resources required compared to establishing it at institutions within range or at other locations\n(clear)"]
[2.16,"Are sufficient resources available at or to your institution to support the establishment of the proposed captive breeding program (e.g. existing facilities and equipment or funding to upgrade or develop facilities and purchase equipment, funding and staff to undertake collection trips, staff with relevant husbandry and veterinary expertise)?",null,"1.\n2.\n3.\n","Yes\nNo\n(clear)"]
["2.17.i","If the likely duration of the captive breeding program is known, are sufficient funds available to support the on-going running costs of the program through to completion?",null,"1.\n2.\n\n\n3.\n","Yes\nOnly initial or short-term funding has been secured but the captive breeding program will likely need to run for the longer-term\n(clear)"]
["2.17.ii","If the captive breeding program will need to run indefinitely at this stage (i.e. the threats have not been reduced to acceptable levels/eradicated), are sufficient funds available to  support the on-going running costs of the program for at least five years? ",null,"1.\n2.\n\n\n3.\n","Yes\nOnly initial or short-term funding has been secured but the captive breeding program will likely need to run for the longer-term\n(clear)"]

{"sheet":"Report","index":1,"n_rows":45,"n_cols":8,"rows_kept":45,"cut":false,"hidden":false,"merged":[[0,1,0,3]]}
[null,"Is establishing a captive breeding program at my institution appropriate?"]
[null,"Species:",{"$f":"'Part 2'!B1","v":0}]
[null,null,{"$f":"'Part 2'!B2","v":0}]
[null,"Institution:",{"$f":"'Part 2'!B3","v":0}]
[]
[null,"Question","Result","Actions"]
[null,2.1,{"$f":"IF('Part 2'!F7 =\"\",\"\",IF('Part 2'!F7 = \"ü\", \"OK\",'Part 2'!F7))","v":""},"The institution is NOT within the geographic range of the target species."]
[null,"2.1.i",{"$f":"IF('Part 2'!F8 =\"\",\"\",IF('Part 2'!F8 = \"ü\", \"OK\",'Part 2'!F8))","v":""},"The program is out of range, but could be established within range instead within an appropriate timeframe. INVESTIGATE ESTABLISHING THE PROGRAM WITHIN THE RANGE STATE AS A PRIORITY."]
[null,"2.1.ii.a",{"$f":"IF('Part 2'!F9 =\"\",\"\",IF('Part 2'!F9 = \"ü\", \"OK\",'Part 2'!F9))","v":""}]
[null,"2.1.ii.b",{"$f":"IF('Part 2'!F10 =\"\",\"\",IF('Part 2'!F10 = \"ü\", \"OK\",'Part 2'!F10))","v":""},"Your institution IS NOT ABLE to provide dedicated secure facilities (as in, no amphibian species from outside the species geographic range, or species that could be vectors of amphibian diseases will be housed in or have access to the facility). DEDICATED SECURE FACILITIES SHOULD BE ESTABLISHED BEFORE A CAPTIVE PROGRAM IS IMPLEMENTED."]
[null,"2.1.ii.c",{"$f":"IF('Part 2'!F11 =\"\",\"\",IF('Part 2'!F11 = \"ü\", \"OK\",'Part 2'!F11))","v":""},"Your institution IS NOT ABLE to provide dedicated equipment for use only with the target species. EQUIPMENT DEDICATED TO THE TARGET SPECIES SHOULD BE PROVIDED BEFORE A CAPTIVE PROGRAM IS IMPLEMENTED."]
[null,"2.1.ii.d",{"$f":"IF('Part 2'!F12 =\"\",\"\",IF('Part 2'!F12 = \"ü\", \"OK\",'Part 2'!F12))","v":""},"Your institution is able to provide dedicated staff to work with the target species."]
[null,"2.1.ii.e",{"$f":"IF('Part 2'!F13 =\"\",\"\",IF('Part 2'!F13 = \"ü\", \"OK\",'Part 2'!F13))","v":""},"There are native amphibian species present at or near your institution."]
[null,"2.1.ii.e.1",{"$f":"IF('Part 2'!F14 =\"\",\"\",IF('Part 2'!F14 = \"ü\", \"OK\",'Part 2'!F14))","v":""},"Your institution can provide appropriate water treatment and solid waste disposal for the target species to minimise the risk of novel disease transmission from the target species to local species."]
[null,"2.1.ii.f",{"$f":"IF('Part 2'!F15 =\"\",\"\",IF('Part 2'!F15 = \"ü\", \"OK\",'Part 2'!F15))","v":""},"Your institution is able to maintain the target species in a permanent state of high-level quarantine to minimise the risk of transferring novel diseases from local amphibians (native or feral) that are found on or near your grounds to the target species and vice versa."]
[null,"2.1.iii",{"$f":"IF('Part 2'!F17 =\"\",\"\",IF('Part 2'!F17 = \"ü\", \"OK\",'Part 2'!F17))","v":""},"Your institution is out of the geographic range of the species, but there are no appropriate threatened native species local to your institution that you could be focussing on instead of the target species.",null,null,null,{"$f":"LEN(\"Other amphibian species that co-occur with the target species are either exotic or widespread,  and it is modertely likely that amphibians of any species could disperse into or out of the target area. \")","v":201}]
[null,"2.1.iii.a",{"$f":"IF('Part 2'!F18 =\"\",\"\",IF('Part 2'!F18 = \"ü\", \"OK\",'Part 2'!F18))","v":""}]
[null,"2.1.iv",{"$f":"IF('Part 2'!F19 =\"\",\"\",IF('Part 2'!F19 = \"ü\", \"OK\",'Part 2'!F19))","v":""},"The target species is from a simple system."]
[null,"2.1.iv.a",{"$f":"IF('Part 2'!F20 =\"\",\"\",IF('Part 2'!F20 = \"ü\", \"OK\",'Part 2'!F20))","v":""},"One or more of the other amphibian species that co-occur with the target species are either threatened or restricted to a narrow geographic range. A THOROUGH DISEASE RISK ASSESSMENT IS REQUIRED BEFORE PROCEEDING."]
[null,"2.1.iv.b",{"$f":"IF('Part 2'!F21 =\"\",\"\",IF('Part 2'!F21 = \"ü\", \"OK\",'Part 2'!F21))","v":""},"Other amphibian species that co-occur with the target species are either exotic or widespread, however it is highly unlikely that amphibians of any species could disperse into or out of the target area."]
[null,2.2000000000000002,{"$f":"IF('Part 2'!F22 =\"\",\"\",IF('Part 2'!F22 = \"ü\", \"OK\",'Part 2'!F22))","v":""},"Your institution does not hold other amphibian species (irrespective of whether it is inside or outside of the geographic range of the species)."]
[null,"2.2.i",{"$f":"IF('Part 2'!F23 =\"\",\"OK\",IF('Part 2'!F23 = \"ü\", \"OK\",'Part 2'!F23))","v":"OK"},"Some amphibians in your collection were collected outside the geographic range of the target species for the captive breeding program, and/or have been housed at an institution that also held amphibians from outside the geographic range of the target species."]
[null,"2.2.ii.a",{"$f":"IF('Part 2'!F24 =\"\",\"\",IF('Part 2'!F24 = \"ü\", \"OK\",'Part 2'!F24))","v":""},"Your institution holds amphibians that were collected outside the geographic range of the target species and/or that were previously held by institutions that also housed amphibians from outside the geographic range of the target species, but a disease risk assessment has not been conducted. A THOROUGH DISEASE RISK ASSESSMENT IS REQUIRED BEFORE PROCEEDING."]
[null,"2.2.ii.b",{"$f":"IF('Part 2'!F25 =\"\",\"\",IF('Part 2'!F25 = \"ü\", \"OK\",'Part 2'!F25))","v":""},"Your institution holds amphibians that were collected outside the geographic range of the target species and/or that were previously held by institutions that also housed amphibians from outside the  geographic range of the target species, but YOUR INSTITUTION IS NOT ABLE ABLE TO PROVIDE DEDICATED FACILITIES, EQUIPMENT AND STAFF FOR THE TARGET SPECIES AND MAINTAIN IT IN A PERMANENT STATE OF HIGH LEVEL QUARANTINE."]
[null,2.2999999999999998,{"$f":"IF('Part 2'!F26 =\"\",\"\",IF('Part 2'!F26 = \"ü\", \"OK\",'Part 2'!F26))","v":""},"The proposed species or a suitable analog (congener with similar husbandry requirements and reproductive biology) has previously been successfully maintained and bred to at least the F2 generation at your institution."]
[null,"2.3.i",{"$f":"IF('Part 2'!F27 =\"\",\"OK\",IF('Part 2'!F27 = \"ü\", \"OK\",'Part 2'!F27))","v":"OK"}]
[null,"2.3.ii",{"$f":"IF('Part 2'!F28 =\"\",\"\",IF('Part 2'!F28 = \"ü\", \"OK\",'Part 2'!F28))","v":""},"There is information available relevant to keeping and/or breeding this species, but YOUR INSTITUTION IS NOT ABLE TO CATER TO ALL OF THE REQUIREMENTS OF THE SPECIES, including any known ‘special requirements’ that could impact on husbandry needs, enclosure and/or facility design or program success. CAPTIVE BREEDING PROGRAM SHOULD NOT PROCEED AT YOUR INSTITUTION."]
[null,"2.4.i",{"$f":"IF('Part 2'!F29 =\"\",\"\",IF('Part 2'!F29 = \"ü\", \"OK\",'Part 2'!F29))","v":""},"A Taxon Management Group or similar (e.g. State or National Recovery Team) has not yet been established for the target species. A TAXON MANAGEMENT GROUP OR SIMILAR GROUP SHOULD BE ESTABLISHED BEFORE PROCEEDING."]
[null,"2.4.ii",{"$f":"IF('Part 2'!F30 =\"\",\"\",IF('Part 2'!F30 = \"ü\", \"OK\",'Part 2'!F30))","v":""},"A comprehensive written plan detailing program partners, goals, anticipated lifespan and management strategy, how and when reviews will be undertaken and the exit strategy for the program has not yet been developed. A CAPTIVE BREEDING PROGRAM SHOULD NOT PROCEED AT YOUR INSTITUTION UNTIL THIS HAS BEEN DEVELOPED AND REVIEWED. This plan should be reviewed by the Taxon Management Group/Recovery Team, or in the absence of such a group, the AArk, prior to establishing the captive program. The ASG, AArk and regional zoo and aquarium associations can provide assistance to develop an appropriate plan if needed (AArk has developed a management plan template)."]
[null,2.5,{"$f":"IF('Part 2'!F31 =\"\",\"\",IF('Part 2'!F31 = \"ü\", \"OK\",'Part 2'!F31))","v":""},"If the species will need to be maintained in captivity indefinitely, your institution will be able to adhere to the recommended strategy to minimise genetic and phenotypic adaptation to captivity (e.g. destroying eggs and culling tadpoles/metamorphs)."]
[null,2.6,{"$f":"IF('Part 2'!F32 =\"\",\"\",IF('Part 2'!F32 = \"ü\", \"OK\",'Part 2'!F32))","v":""},"Your institution currently has, or can acquire appropriately skilled and experienced staff to establish and run the proposed program, prior to acquisition of founders."]
[null,2.7,{"$f":"IF('Part 2'!F33 =\"\",\"\",IF('Part 2'!F33 = \"ü\", \"OK\",'Part 2'!F33))","v":""},"You or your staff have access to appropriate record-keeping systems and small population management tools. Small population management tools do not need to be available at your institution, but you need to either have access to them and the necessary skills to use them or partner with an organisation that can do the required analyses on your behalf."]
[null,2.8,{"$f":"IF('Part 2'!F34 =\"\",\"\",IF('Part 2'!F34 = \"ü\", \"OK\",'Part 2'!F34))","v":""},"A long-term plan for the routine health monitoring of the captive population has been developed in conjunction with an experienced veterinarian and the Taxon Management Group, relevant Recovery Team and/or AArk."]
[null,2.9,{"$f":"IF('Part 2'!F35 =\"\",\"\",IF('Part 2'!F35 = \"ü\", \"OK\",'Part 2'!F35))","v":""},"A veterinarian who is experienced in animal health and diseases is available at your institution or to the captive conservation program."]
[null,2.1,{"$f":"IF('Part 2'!F36 =\"\",\"OK\",IF('Part 2'!F36 = \"ü\", \"OK\",'Part 2'!F36))","v":"OK"},"Question 1.14 (from the previous stage of the assessment process) indicated that conditions at the planned release site(s) are different to those at the source population site(s)."]
[null,"2.10.i",{"$f":"IF('Part 2'!F37 =\"\",\"-\",IF('Part 2'!F37 = \"ü\", \"OK\",'Part 2'!F37))","v":"-"},"The recommended trial to determine whether animals can successfully be transitioned from source site conditions to release site conditions has not yet been conducted."]
[null,"2.10.ii",{"$f":"IF('Part 2'!F38 =\"\",\"\",IF('Part 2'!F38 = \"ü\", \"OK\",'Part 2'!F38))","v":""},"Your institution is able to run the recommended trial to determine whether animals can successfully be transitioned from source site conditions to release site conditions already been conducted."]
[null,2.11,{"$f":"IF('Part 2'!F39 =\"\",\"\",IF('Part 2'!F39 = \"ü\", \"OK\",'Part 2'!F39))","v":""},"Behavioural repertoire is well-known and there are no learned behviours that would necessitate pre-release training."]
[null,2.12,{"$f":"IF('Part 2'!F40 =\"\",\"\",IF('Part 2'!F40 = \"ü\", \"OK\",'Part 2'!F40))","v":""},"There is potential for difficulties receiving necessary equipment or supplies (including food items), or inability of trained equipment repair/service staff to access your institution, that would jeopardise the captive breeding program. THE CAPTIVE BREEDING PROGRAM SHOULD NOT PROCEED AT YOUR INSTITUTION UNLESS THESE ISSUES HAVE BEEN RECTIFIED."]
[null,2.13,{"$f":"IF('Part 2'!F41 =\"\",\"\",IF('Part 2'!F41 = \"ü\", \"OK\",'Part 2'!F41))","v":""},"Your institution has back-up units for critical systems required to provide appropriate environmental conditions (e.g. water filtration, water chillers or heaters, air conditioners, heaters, pumps)."]
[null,2.14,{"$f":"IF('Part 2'!F42 =\"\",\"\",IF('Part 2'!F42 = \"ü\", \"OK\",'Part 2'!F42))","v":""},"Your institution has a comprehensive emergency response plan and any necessary equipment to ensure an appropriate response to a disaster, including the ability to maintain critical systems during extended power outages."]
[null,2.15,{"$f":"IF('Part 2'!F43 =\"\",\"\",IF('Part 2'!F43 = \"ü\", \"OK\",'Part 2'!F43))","v":""},"There will be minimal impact on the resources required to establish and run a captive breeding program for the target species at your institution (e.g. running air conditioning or heating units constantly in a developed country to provide appropriate environmental conditions will have a clear cost in terms of equipment and electricity required, staffing costs in a developed country will be higher, etc.). If your institution is outside the geographic range of the target species, staffing costs should also be comparable to those of a captive breeding program established within the geographic range of the target species."]
[null,2.16,{"$f":"IF('Part 2'!F44 =\"\",\"\",IF('Part 2'!F44 = \"ü\", \"OK\",'Part 2'!F44))","v":""},"Sufficient resources are available at or to your institution to support the establishment of the proposed captive breeding program (e.g. existing facilities and equipment or funding to upgrade or develop facilities and purchase equipment, funding and staff to undertake collection trips, staff with relevant husbandry and veterinary expertise)."]
[null,"2.17.i",{"$f":"IF('Part 2'!F45 =\"\",\"\",IF('Part 2'!F45 = \"ü\", \"OK\",'Part 2'!F45))","v":""},"The likely duration of the captive breeding program is known, and sufficient funds are available to support the on-going running costs of the program through to completion."]
[null,"2.17.ii",{"$f":"IF('Part 2'!F46 =\"\",\"\",IF('Part 2'!F46 = \"ü\", \"OK\",'Part 2'!F46))","v":""},"Assuming that the captive breeding program will need to run indefinitely at this stage (i.e. the threats have not been reduced to acceptable levels or eradicated), your institution ONLY HAS INITIAL OR SHORT-TERM FUNDING  available but not enough to support the on-going running costs of the program for the longer term. A PLAN TO SECURE THE REQUIRED FUNDS SHOULD BE DEVELOPED WITHIN THE FIRST 6-12 MONTHS OF THE PROGRAM STARTING."]